Cogmind - Beta 15 @@@ ROGUE MODE // 2025.07.20 @ 15:13:25 Player: jumpy Result: Self-destructed Performance ------------- Evolutions (5) 2500 Regions Visited (5) 1000 Robots Destroyed (38) 190 Value Destroyed (1688) 1688 Prototype IDs (3) 60 Alien Tech Used (0) 0 Bonus (800) 800 TOTAL SCORE: 6238 Bonus ------- Registered with UFD 300 Met Optimus in HQ 500 Cogmind --------- Core Integrity 662/1000 Matter 255/300 Energy 99/100 System Corruption 30% Temperature Cool (0) Movement Hovering (45) Location -5/Factory Parts ------- > --- POWER (2) -------- (None) > --- PROPULSION (4) --- Gravmag Array Antigrav System Linear Gravjet > --- UTILITY (8) ------ Large Storage Unit > --- WEAPON (3) ------- (None) > --- INVENTORY (15) --- Light Angular Momentum Engine Improved Titanium Leg Improved Titanium Leg Improved Titanium Leg Improved Titanium Leg Flexi-carbon Leg Flexi-carbon Leg Improved VSS Leg Power Amplifier Improved Signal Interpreter Improved Plasma Cutter Peak State ------------ > --- POWER ------------ Cooled Deuterium Engine Neutrino Core > --- PROPULSION ------- Improved Titanium Leg Improved Titanium Leg Improved Titanium Leg Improved Titanium Leg > --- UTILITY ---------- Improved Heat Sink Improved Heat Sink Large Storage Unit Advanced Visual Processing Unit Improved Sensor Array Advanced Signal Interpreter Improved Melee Analysis Suite Improved Target Analyzer > --- WEAPON ----------- Disruptor Cannon Compact Ion Cannon Powered Hammer > --- INVENTORY -------- Light Angular Momentum Engine Light Fission Core Improved Titanium Leg Improved Titanium Leg Improved Titanium Leg Improved Titanium Leg Flexi-carbon Leg Flexi-carbon Leg Improved VSS Leg Power Amplifier Improved Signal Interpreter Experimental Propulsion Shielding Long-range Missile Launcher Improved Plasma Cutter Katana [Rating: 76] Favorites ----------- Power Ion Engine Engine Ion Engine Power Core Neutrino Core Propulsion Light Treads Treads Light Treads Leg Improved Titanium Leg Hover Unit Antigrav System Utility Large Storage Unit Device Seismic Detector Storage Large Storage Unit Processor Advanced Signal Interpreter Protection Improved Light Armor Plating Weapon Assault Rifle Energy Cannon Compact Ion Cannon Ballistic Gun Assault Rifle Ballistic Cannon Heavy Flak Cannon Launcher Heavy Rocket Launcher Impact Weapon Powered Hammer Slashing Weapon Katana Build | -11 -10 -10 -8 -6 -5 ------- Run | Yrd Mat Sub Scr Fac Fac Slots Evolved 10 | . . . . 8 2 Power 1 | . . . . . 1 Propulsion 2 | . . . . 2 . Utility 6 | . . . . 5 1 Weapon 1 | . . . . 1 . Parts Attached 58 | 7 1 . 8 26 16 Power 8 | 1 . . 1 3 3 Engine 5 | 1 . . 1 2 1 Core 3 | . . . . 1 2 Reactor . | . . . . . . Propulsion 15 | 2 . . 2 8 3 Treads 7 | 2 . . 2 3 . Leg 5 | . . . . 5 . Wheel . | . . . . . . Hover 3 | . . . . . 3 Flight . | . . . . . . Utility 22 | 2 1 . 1 12 6 Device 8 | 1 . . . 4 3 Storage 3 | 1 1 . . 1 . Processor 6 | . . . . 3 3 Hackware . | . . . . . . Protection 5 | . . . 1 4 . Artifact . | . . . . . . Weapon 13 | 2 . . 4 3 4 Energy Gun . | . . . . . . Energy Cannon 5 | . . . 2 2 1 Ballistic Gun 3 | 2 . . 1 . . Ballistic Cannon 1 | . . . . . 1 Launcher 2 | . . . . 1 1 Special Weapon . | . . . . . . Impact Weapon 1 | . . . 1 . . Slashing Weapon 1 | . . . . . 1 Piercing Weapon . | . . . . . . Special Melee Weapon . | . . . . . . Unidentified Prototypes 3 | . . . . 3 . Parts Lost 28 | . . . . 8 20 Power 3 | . . . . . 3 Propulsion 7 | . . . . 3 4 Utility 12 | . . . . 3 9 Weapon 6 | . . . . 2 4 Highest Loss Streak 16 | . . . . 2 16 To Critical Strikes 2 | . . . . . 2 Average Backups 11 | 4 6 6 12 11 14 Power 1 | . 1 1 1 2 1 Propulsion 3 | 1 2 2 3 2 6 Utility 3 | 1 2 2 3 3 3 Weapon 2 | . 1 1 3 2 2 Tool/Special . | . . . . . . Unused Backups 19 | . . . 6 4 9 Power 5 | . . . 3 2 . Propulsion 9 | . . . 2 1 6 Utility 3 | . . . . 1 2 Weapon 1 | . . . 1 . . Tool/Special 1 | . . . . . 1 Average Slot Usage (%) 92 | . 100 100 97 88 79 Engine 9 | . 14 14 14 4 4 Core 1 | . . . . 1 3 Treads 19 | . 28 28 28 14 . Leg 6 | . . . . 11 18 Device 9 | . 14 14 10 8 9 Storage 9 | . 14 14 14 6 5 Processor 7 | . . . . 16 15 Protection 3 | . . . 3 5 2 Energy Cannon 7 | . . . 5 11 5 Ballistic Gun 9 | . 28 28 16 . . Impact Weapon 4 | . . . 3 6 3 Peak Build Rating 76 | 7 7 7 21 64 76 Average Rating 31 | 6 7 7 13 52 62 On Entrance 17 | . 7 7 7 21 60 Naked Turns . | . . . . . . Heaviest Build 79 | 15 30 30 44 60 79 Greatest Support 86 | 40 40 40 40 86 80 Greatest Overweight (x) 7 | . . . 1 2 7 Average Overweight (x) . | . . . . . . Largest Inventory Capacity 25 | 8 15 15 15 25 15 Average Capacity 14 | 7 14 15 15 15 15 Most Carried 15 | 6 7 6 15 15 15 Average Carried 11 | 4 6 6 12 11 14 Final Capacity 15 | 8 15 15 15 15 15 Final Carried 15 | 6 6 6 14 15 11 Class Distribution -------------------- 63% | Mutant 20% | Assassin 16% | Derelict-Mutant Dominant Class ---------------- Mutant | -10/Materials Mutant | -10/Subcaves Mutant | -8/Scraptown Derelict-Mutant | -6/Factory Assassin | -5/Factory Resources | -11 -10 -10 -8 -6 -5 ----------- Run | Yrd Mat Sub Scr Fac Fac Matter Collected 1058 | 334 . 24 101 348 251 Remotely . | . . . . . . Salvage Created 1461 | 163 . . . 880 418 Parts 85 | 17 . . . 38 30 Haulers Intercepted . | . . . . . . Recyclers Shooed 1 | . . . . 1 . Parts Field Recycled . | . . . . . . Retrieved Matter . | . . . . . . Parts Self-Destructed 6 | . . 6 . . . Prevented . | . . . . . . Kills | -11 -10 -10 -8 -6 -5 ------- Run | Yrd Mat Sub Scr Fac Fac Combat Hostiles Destroyed 29 | . . . . 17 12 Melee 3 | . . . . 3 . Cannons 13 | . . . . 8 5 AOE 12 | . . . . 5 7 Classes Destroyed 12 | 2 . . . 6 4 Worker 1 | . . . . 1 . Tunneler 6 | 5 . . . 1 . Recycler 1 | 1 . . . . . Watcher 1 | . . . . . 1 Swarmer 4 | . . . . . 4 Saboteur 1 | . . . . . 1 Grunt 7 | . . . . 7 . Brawler 1 | . . . . . 1 Sentry 3 | . . . . 3 . Hunter 3 | . . . . 3 . Programmer 9 | . . . . 3 6 Heavy 1 | . . . . 1 . Best Kill Streak 4 | 2 . . . 3 4 Combat Bots Only 4 | . . . . 3 4 Max Kills in Single Turn 4 | 1 . . . 2 4 Gunslinging . | . . . . . . Exploded 4 | . . . . 2 4 Melee 1 | . . . . 1 . Uniques/NPCs Destroyed . | . . . . . . Combat | -11 -10 -10 -8 -6 -5 -------- Run | Yrd Mat Sub Scr Fac Fac Hostile Shots Fired 338 | . . . 20 222 96 Missed 90 | . . . 3 70 17 Hits 248 | . . . 17 152 79 Melee 15 | . . . . . 15 Projectile 233 | . . . 17 152 64 Critical Strikes 8 | . . . 2 2 4 Damage Taken 4471 | . . . 324 2126 2021 Core 606 | . . . 58 210 338 Absorbed by Shields . | . . . . . . Redirected to Shielding 158 | . . . . . 158 Regen/Repaired (Parts) 185 | . . . 185 . . Core Remaining (%) 83 | 100 . . 76 75 . Volleys Fired 90 | 13 . . . 56 21 Largest 2 | 2 . . . 2 2 Hottest 171 | 40 . . . 165 171 Shots Fired 156 | 26 . . . 95 35 Gun 26 | 26 . . . . . Cannon 121 | . . . . 88 33 Launcher 9 | . . . . 7 2 Special . | . . . . . . Kinetic 35 | 26 . . . . 9 Thermal 97 | . . . . 80 17 Explosive 9 | . . . . 7 2 Electromagnetic 15 | . . . . 8 7 Robot Hit Streak 17 | 3 . . . 17 5 Robot Miss Streak 6 | 2 . . . 6 3 Penetration Max . | . . . . . . Secondary Targets . | . . . . . . Shots Hit Robots 115 | 12 . . 1 74 28 Core Hits 69 | 6 . . . 32 31 Critical Kills 2 | . . . . 2 . Critical Parts Destroyed . | . . . . . . Critical Strikes 3 | . . . . 2 1 Smash 2 | . . . . 2 . Sever 1 | . . . . . 1 Melee Attacks 35 | . . . 1 18 16 Impact 24 | . . . 1 18 5 Slashing 11 | . . . . . 11 Piercing . | . . . . . . Sneak Attacks 4 | . . . . 4 . Combat Hostiles . | . . . . . . Follow-up Attacks . | . . . . . . Damage Inflicted 5326 | 153 . . 34 3103 2036 Guns 153 | 153 . . . . . Cannons 2137 | . . . . 1647 490 Explosions 1886 | . . . . 659 1227 Melee 1146 | . . . 30 797 319 Ramming 4 | . . . 4 . . Kinetic 325 | 153 . . . . 172 Thermal 2340 | . . . . 1482 858 Explosive 1310 | . . . . 659 651 Electromagnetic 201 | . . . . 165 36 Impact 1026 | . . . 30 797 199 Slashing 120 | . . . . . 120 Piercing . | . . . . . . Highest Corruption 30 | . . . 1 9 30 Average Corruption 5 | . . . 1 2 12 Corruption Purged . | . . . . . . Corruption Blocked . | . . . . . . Effects 26 | . . . . 11 15 Message Errors 1 | . . . . 1 . Matter Fused 8 | . . . . 4 4 Heat Flow Errors 5 | . . . . 1 4 Energy Discharges 4 | . . . . 1 3 Parts Rejected 1 | . . . . 1 . Data Loss (minor) 2 | . . . . 1 1 Data Loss (major) 1 | . . . . 1 . Misfires 1 | . . . . . 1 Weapon Failures 3 | . . . . 1 2 Overload Shots . | . . . . . . Overflow Damage 486 | . . . . 258 228 Projectiles 5 | . . . . . 5 Explosions 215 | . . . . 5 210 Melee 266 | . . . . 253 13 Knockbacks 2 | . . . . 2 . Impact 2 | . . . . 2 . Kinetic . | . . . . . . Secondary . | . . . . . . Self-Inflicted Damage 232 | . . . . . 232 Shots 3 | . . . . . 3 Rammed 3 | . . . 3 . . Targets Rammed 3 | . . . 3 . . Kicked . | . . . . . . Crushed . | . . . . . . Highest Temperature 336 | . . . 42 336 252 Average Temperature 105 | . . . 18 114 80 Received Heat Transfer 632 | . . . 158 285 189 Effects 7 | . . . . 7 . Shutdowns 1 | . . . . 1 . Interference 6 | . . . . 6 . Siege Activations . | . . . . . . Martial Activations . | . . . . . . Shielding Activations . | . . . . . . Robots Disrupted 1 | . . . . . 1 Combat Hostiles . | . . . . . . Robots Corrupted 1 | . . . . . 1 Combat Hostiles . | . . . . . . Parts Fried 5 | . . . . 4 1 Impact Corruptions 11 | . . . . 10 1 Robots Melted 1 | . . . . 1 . Combat Hostiles 1 | . . . . 1 . Parts Melted 10 | . . . . 10 . Heat Transferred 2507 | . . . . 1924 583 Parts Sabotaged . | . . . . . . Parts Stolen . | . . . . . . Parts Stripped . | . . . . . . Power Chain Reactions . | . . . . . . Alert | -11 -10 -10 -8 -6 -5 ------- Run | Yrd Mat Sub Scr Fac Fac Maximum Alert Level . | . . . . . . Low Security (%) 100 | 100 100 . . 100 100 Level 1 . | . . . . . . Level 2 . | . . . . . . Level 3 . | . . . . . . Level 4 . | . . . . . . Level 5 . | . . . . . . High Security . | . . . . . . Max Security . | . . . . . . Peak Influence 185 | 5 10 . . 106 185 Initial 23 | . . . . . 23 Average 34 | . 2 . . 43 34 Influence Increases 1100 | 30 20 . . 554 496 Destroy 0b10 Robot/C 580 | . . . . 340 240 Destroy 0b10 Robot/NC 45 | 30 . . . 10 5 Destroy Leader 152 | . . . . 110 42 Successful Hack 31 | . 5 . . 10 16 Disable Machine 90 | . . . . 30 60 Destroy Structure 142 | . . . . 54 88 Partial Spotted 15 | . 15 . . . . Lose Combat Pursuer 45 | . . . . . 45 Influence Decreases 935 | 30 20 . . 505 380 Entered New Map 26 | . . . . . 26 Time Decay 688 | 30 20 . . 429 209 Lost Part 221 | . . . . 76 145 Squads Dispatched 13 | . 1 . . 10 2 Investigation 5 | . 1 . . 4 . Extermination 5 | . . . . 3 2 Reinforcement 3 | . . . . 3 . Assault . | . . . . . . Garrison . | . . . . . . Intercept . | . . . . . . Searches Triggered . | . . . . . . Construction Impeded . | . . . . . . Haulers Reinforced 1 | . . . . 1 . Active Scanning Responses . | . . . . . . Cargo Convoy Interrupts 1 | . . . . . 1 Stealth | -11 -10 -10 -8 -6 -5 --------- Run | Yrd Mat Sub Scr Fac Fac Distress Signals 3 | . . . . 1 2 Communications Jammed . | . . . . . . Distress Signals . | . . . . . . Times Spotted 63 | . . 3 7 19 34 Peak Tracking Total 14 | . . 2 7 3 14 Tactical Retreats 2 | . . . . . 2 Traps | -11 -10 -10 -8 -6 -5 ------- Run | Yrd Mat Sub Scr Fac Fac Traps Triggered 3 | . . . . 2 1 Indirectly . | . . . . . . Trap Hack Attempts . | . . . . . . Triggered . | . . . . . . Disarmed . | . . . . . . Reprogrammed . | . . . . . . Reused . | . . . . . . Traps Extracted . | . . . . . . Installed . | . . . . . . Triggered . | . . . . . . Machines | -11 -10 -10 -8 -6 -5 ---------- Run | Yrd Mat Sub Scr Fac Fac Machines Disabled 6 | . . . . 2 4 Max in Single Turn 1 | . . . . 1 1 Machines Repaired . | . . . . . . Machines Dismantled . | . . . . . . Machines Sabotaged . | . . . . . . Overloaded Fab Kills . | . . . . . . Hacking | -11 -10 -10 -8 -6 -5 --------- Run | Yrd Mat Sub Scr Fac Fac Machines Accessed 10 | . 1 . . 5 4 Terminals 3 | . 1 . . 1 1 Fabricators . | . . . . . . Repair Stations 2 | . . . . . 2 Recycling Units 4 | . . . . 3 1 Scanalyzers . | . . . . . . Garrison Access 1 | . . . . 1 . Total Hacks 26 | . 7 . . 11 8 Successful 6 | . 2 . . 2 2 Failed 20 | . 5 . . 9 6 Catastrophic 2 | . . . . 1 1 Database Lockouts . | . . . . . . Manual 11 | . 3 . . 6 2 Terminals 11 | . 7 . . 2 2 Fabricators . | . . . . . . Repair Stations 4 | . . . . . 4 Recycling Units 8 | . . . . 6 2 Scanalyzers . | . . . . . . Garrison Access 3 | . . . . 3 . Terminal Hacks 3 | . 1 . . 1 1 Record 1 | . . . . 1 . Locate Traps 2 | . 1 . . . 1 Fabricator Hacks . | . . . . . . Repair Station Hacks 1 | . . . . . 1 Scan Component 1 | . . . . . 1 Recycling Unit Hacks . | . . . . . . Scanalyzer . | . . . . . . Garrison Access Hacks . | . . . . . . Unauthorized Hacks 2 | . 1 . . 1 . Terminals 1 | . 1 . . . . Botnet 1 | . 1 . . . . Fabricators . | . . . . . . Repair Stations . | . . . . . . Recycling Units 1 | . . . . 1 . Fedlink 1 | . . . . 1 . Scanalyzers . | . . . . . . Garrison Access . | . . . . . . Data Cores Recovered . | . . . . . . Used . | . . . . . . Hacking Detections 8 | . 1 . . 4 3 Full Trace Events 4 | . 1 . . 3 . Feedback Events 2 | . . . . 2 . Corruption 2 | . . . . 2 . Feedback Blocked . | . . . . . . Robot Schematics Acquired . | . . . . . . Robots Built . | . . . . . . Authchips . | . . . . . . Time . | . . . . . . Total Robot Build Rating . | . . . . . . Part Schematics Acquired . | . . . . . . Parts Built . | . . . . . . Authchips . | . . . . . . Time . | . . . . . . Total Part Build Rating . | . . . . . . Parts Repaired . | . . . . . . Time . | . . . . . . Parts Recycled . | . . . . . . Recycled Matter . | . . . . . . Retrieved Matter . | . . . . . . Retrieved Components . | . . . . . . Parts Scanalyzed . | . . . . . . Part Schematics Acquired . | . . . . . . Parts Damaged . | . . . . . . Bothacking | -11 -10 -10 -8 -6 -5 ------------ Run | Yrd Mat Sub Scr Fac Fac Used RIF Installer . | . . . . . . Robots Hacked . | . . . . . . Non-combat . | . . . . . . Combat . | . . . . . . Robot Hacks Applied . | . . . . . . Relay Couplers Released . | . . . . . . Fabnet Peak Effective % . | . . . . . . Robots Rewired . | . . . . . . Allies Hacked . | . . . . . . Hacks Repelled . | . . . . . . Allies | -11 -10 -10 -8 -6 -5 -------- Run | Yrd Mat Sub Scr Fac Fac Total Allies . | . . . . . . Largest Group . | . . . . . . Highest-Rated Group . | . . . . . . Highest-Rated Ally . | . . . . . . Total Orders . | . . . . . . Ally Attacks . | . . . . . . Total Damage . | . . . . . . Kills . | . . . . . . Allies Corrupted . | . . . . . . Allies Melted . | . . . . . . Intel | -11 -10 -10 -8 -6 -5 ------- Run | Yrd Mat Sub Scr Fac Fac Active Infowar (turns) 4235 | 238 92 255 1538 1572 540 Optics 2112 | . . . . 1572 540 Sensors 1038 | . . . . 527 511 Terrain 897 | . . . . 897 . Seismic 2123 | 238 92 255 1538 . . ECM 21 | . . . . . 21 Robot Analysis Total . | . . . . . . Derelict Logs Recovered . | . . . . . . Drone Launches . | . . . . . . Drone Recoveries . | . . . . . . Exploration | -11 -10 -10 -8 -6 -5 ------------- Run | Yrd Mat Sub Scr Fac Fac Turns Passed 5032 | 353 92 255 2069 1574 689 Spaces Moved 2839 | 189 57 131 1160 846 456 Core 7 | 4 . . . . 3 Treads 1967 | 185 57 131 1160 434 . Legs 762 | . . . . 412 350 Wheels . | . . . . . . Hover 103 | . . . . . 103 Flight . | . . . . . . Fastest Speed 45 | 50 160 160 160 130 45 Average Speed 155 | 157 160 160 174 147 120 Slowest Speed 400 | 160 160 160 240 270 400 Overloaded Moves . | . . . . . . Propulsion Burnouts . | . . . . . . Robots Hopped . | . . . . . . Potential Cave-ins . | . . . . . . Cave-ins Triggered . | . . . . . . Exploration Rate (%) 23 | 6 12 13 75 20 12 Regions Visited 5 Branch Regions 2 Pre-discovered Areas . | . . . . . . Known Exits Taken 1 | . . . . 1 . Unknown Exits Taken 4 | 1 1 1 1 . . Scrap Searched 5 | . . . 5 . . Spaces Dug 1 | . . . . 1 . Terrain Destroyed 105 | . . . . 51 54 Melee 1 | . . . . 1 . Projectile 10 | . . . . 9 1 AOE 94 | . . . . 41 53 Terrain Rammed . | . . . . . . Walls Destroyed . | . . . . . . Machines Disabled . | . . . . . . Actions | -11 -10 -10 -8 -6 -5 --------- Run | Yrd Mat Sub Scr Fac Fac Total 3230 | 215 58 177 1205 1044 531 Wait 117 | 1 . 47 . 59 10 Move 2835 | 188 56 130 1160 845 456 Hop . | . . . . . . Pick Up 44 | 6 . . 17 17 4 Fast Attach 23 | 7 . . . 9 7 Attach 19 | . . . 2 10 7 Detach 4 | . . . 2 1 1 Swap 30 | . 1 . 9 16 4 Drop 31 | . 1 . 12 13 5 Fire 90 | 13 . . . 56 21 Melee 35 | . . . 1 18 16 Ram . | . . . . . . Kick . | . . . . . . Crush 2 | . . . 2 . . Escape Stasis . | . . . . . . Rewire . | . . . . . . Trap . | . . . . . . Miscellaneous . | . . . . . . Route ------- -11/Scrapyard -10/Materials -10/Subcaves -8/Scraptown -6/Factory (discovered 2 exits: *Fac / *Low) -5/Factory History --------- Turn | Location | Event 68 | -11/Scrapyard | Discovered new exit (range 14) 354 | -11/Scrapyard | Entered Materials 355 | -10/Materials | Build established: Mutant 355 | -10/Materials | Met a group of wandering Federalists 435 | -10/Materials | Discovered new exit (range 8) 446 | -10/Materials | Entered Subcaves 447 | -10/Subcaves | Continued accompanying wandering Federalists (5) 447 | -10/Subcaves | Approached by a straggling Scientist 681 | -10/Subcaves | Wandering Federalist uncovered a shortcut to Scraptown 701 | -10/Subcaves | Entered Scraptown 1050 | -8/Scraptown | Visited Awakened 1082 | -8/Scraptown | Visited The Evicted 1169 | -8/Scraptown | Visited Red Mages 1233 | -8/Scraptown | Visited Comm Corps 1354 | -8/Scraptown | Visited CR-KLE's Repair Center 1380 | -8/Scraptown | Visited Symbiants 1402 | -8/Scraptown | Visited Cyclists 1445 | -8/Scraptown | Visited UFD Registry 1445 | -8/Scraptown | Registered with UFD as "Gaussshaft" 1481 | -8/Scraptown | Entered Cyclist Reading Room 1657 | -8/Scraptown | Visited Sword Containment 1687 | -8/Scraptown | Visited Junk Repository 1744 | -8/Scraptown | Visited Scrap Suit Storage 1758 | -8/Scraptown | Visited Research Penetration Think Tank 1800 | -8/Scraptown | Visited DA-N13 Charitable Foundation 1806 | -8/Scraptown | Found DCF Scrap (28 items) 2150 | -8/Scraptown | Visited Scrapoid Research Area 2196 | -8/Scraptown | Visited Curators Association 2323 | -8/Scraptown | CR-KLE repaired 4 parts 2638 | -8/Scraptown | Met Optimus 2638 | -8/Scraptown | Accepted into 0bPrime 2752 | -8/Scraptown | Civil war broke out across Scraptown 2765 | -8/Scraptown | Discovered new exit (range 3) 2770 | -8/Scraptown | Entered Factory 2770 | -6/Factory | Evolved 8 slots: Propulsion x2, Utility x5, Weapon x1 2798 | -6/Factory | Lost 4 allies 3074 | -6/Factory | Build established: Derelict-Mutant 3195 | -6/Factory | Discovered new exit (range 10) 3208 | -6/Factory | Identified exit to Lower Caves 3527 | -6/Factory | Loaded intel: 8 recycling unit locations 3886 | -6/Factory | Discovered new exit (range 8) 3895 | -6/Factory | Identified exit to Factory 4126 | -6/Factory | Build established: Assassin 4344 | -6/Factory | Entered another Factory area 4344 | -5/Factory | Evolved 2 slots: Power x1, Utility x1 4866 | -5/Factory | System corruption reached 10% 4918 | -5/Factory | System corruption reached 30% 4948 | -5/Factory | Lost 16 parts (2p4n7u3w) 5030 | -5/Factory | Cargo convoy interrupted 5033 | -5/Factory | Self-destructed Last Messages --------------- 04990_ System corrupted: Heat flow error (+259). 05006_ System corrupted: Heat flow error (+103). 05007_ S-27 Virus destroyed. 05007_ Construction Platform disabled. 05007_ S-27 Virus destroyed. 05009_ U-05 Engineer lays Concrete. 05021_ Acquired Linear Gravjet. 05025_ K-01 Serf cleans the Assembly Bed. 05029_ C-30 ARC bursts open, deploying its payload. 05029_ X-67 Chaingunner unfolds itself. 05029_ H-66 Slayer unfolds itself. 05030_ ALERT: Cargo convoy interrupted, initiating access lockdown. 05030_ C-30 ARC bursts open, deploying its payload. 05030_ I-47 Archangel unfolds itself. 05030_ K-01 Serf cleans the Nuclear Reactor. 05031_ E-15 Imp destroyed. 05031_ Penetrated by Slug. 05031_ Lrn. Missile Launcher destroyed. 05032_ Lgt. Fission Core destroyed. 05033_ Exp. Propulsion Shielding destroyed. Map ----- +----------------------------------------------------+ | ?????????????????????????????????????????????????? | | ?????????????????????????????????????????????????? | | ?????????????????????????????????????????????????? | | ?????????????????????????????????????????????????? | | ?????????????????????????????????????????????????? | | ?????????????????????????????????????????????????? | | ?????????????????????????????????????????????????? | | ?????????????????????????????????????????????????? | | ?????????????????????????????????????????????????? | | ?????????????????????????????????????????????????? | | ?????????????????????? ??????????????????????????? | | ???????????????????? ??????????????????????????? | | ?????????????????? !???????????????????????????? | | ???????????????? ???????????????????????????? | | ?????????????? """?????????????????????????????? | | ############ """?????????????????????????????? | | [ # """"????????????????????????????? | | ! [ #?????????????????????????????????????? | | ! #?????????????????????????????????????? | | = ##############????????????????????????? | | " " """ # #????????????????????????? | | " " """" # T #????????????????????????? | | " """""" # ######???????????????????? | | " """""" # ##??????????????????? | | # k hh# #????????????????? | | %+ """" """ @% x #????????????????? | | # """" """ ph% #????????????????? | | # """" """ hh #????????????????? | | ###### # """" ####h #????????????????? | | ?????# # """" #???i #????????????????? | | ?????# # """" #???? #????????????????? | | ?????# # #?????iR#????????????????? | | ?????# ####+#########?????? #????????????????? | | ?????# # #???????#????????????????? | | ?????# # ^ #????????????????????????? | | ?????# # ^ #????????????????????????? | | ?????# # """ """ #????????????????????????? | | ?????# # """ """ #????????????????????????? | | ?????+ # """ """^ #????????????????????????? | | ?????# + ^ #????????????????????????? | | ?????# # """ """ #????????????????????????? | | ?????# # """ """ #????????????????????????? | | ?????# # """ """ #????????????????????????? | | ?????# # ^ ^ #????????????????????????? | | ?????# # #????????????????????????? | | ?????# ## ###########????????????????????????? | | ###### # """ "???????????????????????????? | | == # """ "???????????????????????????? | | =[ # """ """ "???????????????????????????? | | # "" ??????????????????????????? | +----------------------------------------------------+ Best States ------------- Heat Dissipation 68 Energy Generation 32 Energy Capacity 525 Matter Stores 300 Matter Capacity 300 Sight Range 20 Robot Scan Range 15 Terrain Scan Range 16 Terrain Scan Density 10 ECM Strength 2 Corruption Containment 8 Armor Coverage 600 Propulsion Shielding 90 Evasion (%) 56 Targeting Accuracy 8 Melee Accuracy 6 Target Analysis 6 Recoil Reduction 4 Particle Charging 20 Item Schematics ----------------- None Robot Schematics ------------------ None Fabricated ------------ Nothing Repaired ---------- Nothing Alien Tech Used ----------------- None Achievements -------------- None Challenges ------------ None Game ------ Seed WeldingMolecularRefractor Manual? 0 Play Time 00:25:46 Cumulative 171.3 hours Start 2025.07.20 @ 14:46:45 End 2025.07.20 @ 15:13:25 Sessions 1 Manual Loads 0 Difficulty Rogue Special Mode None Game No. 417 Rogue 417 Adventurer 0 Explorer 0 Win Type - Total 7 Types 5/0/1/1/0/0/0/0/0/0 Lore% 71 Gallery% 63 Achievement% 50 Wizard Run 0 Options --------- Layout 0 ASCII 0 Keyboard 0 Movement Numpad Keybinds 0 Fullscreen 2 Font 18/Terminus Map View 76x50 Zoom Use 0% Tactical HUD 1 Map Filters NONE Filters SATURATION(100) Steam 1 RUN: c87c95f9-a5f4-40f9-b18f-a93b9cd17988